fUST/lending_fUST_20250814
["ID","MTS","AMOUNT","RATE_DAILY","PERIOD"]
[379055353,1755106232761,-500.0,0.00019077,2]
[379055355,1755106232771,-500.0,0.00019077,2]
[379055357,1755106232780,-500.0,0.00019077,2]
[379055359,1755106232789,-500.0,0.00019077,2]
[379055361,1755106232799,-500.0,0.00019077,2]
[379055363,1755106232808,-307.1243037,0.00019077,2]
[379055365,1755106232818,-500.0,0.00019077,2]
[379055367,1755106232827,-500.0,0.00019077,2]
[379055369,1755106232837,-500.0,0.00019077,2]
[379055371,1755106232847,-247.09445465,0.00019078,2]
[379055372,1755106232857,-140341.70061829,0.00019078,2]
[379055375,1755106232871,-710.17380002,0.00019078,2]
[379055585,1755106238424,-21114.33680883,0.00019078,2]
[379055587,1755106238645,-5261.10802629,0.00019078,2]
[379055593,1755106240153,-240.98276432,0.00019078,2]
[379055594,1755106240165,-128462.23944573,0.00019078,2]
[379055722,1755107008184,369.5735368,0.00018119,2]
[379055729,1755107040935,24900.0,0.00017975,2]
[379055730,1755107050142,171.883573,0.00017968,2]
[379055736,1755107108968,5000.0,0.00018307,2]
[379055737,1755107117816,4452.15375391,0.00018307,2]
[379055739,1755107126503,5000.0,0.00018307,2]
[379055740,1755107141805,5000.0,0.00018307,2]
[379055741,1755107157438,5000.0,0.00018307,2]
[379055743,1755107172953,5000.0,0.00018307,2]
[379055748,1755107179275,209.940175,0.00013699,2]
[379055749,1755107189038,5000.0,0.00018307,2]
[379055750,1755107204470,5000.0,0.00018307,2]
[379055751,1755107221046,5000.0,0.00018307,2]
[379055754,1755107284381,10000.0,0.0001785,2]
[379055984,1755107438514,-3256.57361464,0.000185,2]
[379055985,1755107438521,-500.0,0.00018523,2]
[379055986,1755107438529,-500.0,0.00018523,2]
[379055987,1755107438538,-500.0,0.00018523,2]
[379055988,1755107438546,-500.0,0.00018523,2]
[379055989,1755107438553,-500.0,0.00018523,2]
[379055990,1755107438560,-500.0,0.00018523,2]
[379055991,1755107438566,-500.0,0.00018523,2]
[379055992,1755107438573,-500.0,0.00018523,2]
[379055993,1755107438580,-500.0,0.00018523,2]
[379055994,1755107438589,-500.0,0.00018523,2]
[379055995,1755107438598,-500.0,0.00018523,2]
[379055996,1755107438607,-500.0,0.00018523,2]
[379055997,1755107438616,-500.0,0.00018523,2]
[379055998,1755107438625,-500.0,0.00018523,2]
[379055999,1755107438642,-500.0,0.00018523,2]
[379056000,1755107438651,-634.48311636,0.00018523,2]
[379056001,1755107438661,-500.0,0.00018523,2]
[379056002,1755107438670,-40123.20655257,0.00018524,2]
[379056003,1755107438688,-15328.20572348,0.00018524,2]
[379056004,1755107438699,-8044.45010541,0.00018524,2]
[379056005,1755107438712,-773.6700976,0.00018524,2]
[379056006,1755107438725,-3381.38032451,0.00018524,2]
[379056007,1755107438749,-1922.38994958,0.00018524,2]
[379056008,1755107438781,-11467.7955211,0.00018524,2]
[379056009,1755107438792,-1361.54381862,0.00018524,2]
[379056010,1755107438803,-528.89709118,0.00018524,2]
[379056014,1755107440420,-1316.39270049,0.00018524,2]
[379056090,1755107443657,-76789.33487858,0.00018524,2]
[379056093,1755107443822,-1751.97367446,0.00018524,2]
[379056118,1755107446532,-372.9242503,0.00018524,2]
[379056119,1755107446543,-3118.62792139,0.00018524,2]
[379056120,1755107446588,-4994.53139803,0.00018524,2]
[379056144,1755107758451,212.661135,0.00017523,2]
[379056146,1755107955296,5000.0,0.00018307,2]
[379056152,1755108105569,24900.0,0.00017458,2]
[379056159,1755108291419,307.558,0.00018154,2]
[379056161,1755108318015,228.813028,0.00013699,2]
[379056165,1755108351296,164.66870259,0.00018228,2]
[379056168,1755108379185,1449.09530392,0.00018307,2]
[379056691,1755108638742,-313.67888339,0.00018373,2]
[379056692,1755108638955,-529.36438049,0.00018373,2]
[379056693,1755108638964,-290.83561977,0.00018421,2]
[379056770,1755108640768,-9.16438023,0.00018421,2]
[379056771,1755108640780,-300.0,0.00018421,2]
[379056772,1755108640790,-300.0,0.00018421,2]
[379056773,1755108640800,-300.0,0.00018421,2]
[379056774,1755108640809,-1200.0,0.00018421,2]
[379056775,1755108640819,-1200.0,0.00018422,2]
[379056776,1755108640828,-237.0,0.00018422,2]
[379056777,1755108640837,-300.0,0.00018423,2]
[379056778,1755108640847,-73869.45853652,0.00018424,2]
[379056779,1755108640856,-2930.91625314,0.00018473,2]
[379056780,1755108640866,-151.0,0.00018513,2]
[379056781,1755108640875,-151.0,0.00018513,2]
[379056782,1755108640884,-151.0,0.00018513,2]
[379056783,1755108640893,-8919.63830884,0.00018513,2]
[379056784,1755108640903,-151.0,0.00018513,2]
[379056785,1755108640912,-151.0,0.00018513,2]
[379056786,1755108640922,-151.0,0.00018513,2]
[379056787,1755108640931,-151.0,0.00018513,2]
[379056788,1755108640940,-151.0,0.00018513,2]
[379056789,1755108640949,-151.0,0.00018513,2]
[379056790,1755108640959,-151.0,0.00018513,2]
[379056791,1755108640969,-151.0,0.00018513,2]
[379056792,1755108640978,-151.0,0.00018513,2]
[379056793,1755108640987,-151.0,0.00018513,2]
[379056794,1755108640996,-151.0,0.00018513,2]
[379056795,1755108641005,-151.0,0.00018513,2]
[379056796,1755108641015,-151.0,0.00018513,2]
[379056797,1755108641024,-151.0,0.00018513,2]
[379056798,1755108641038,-151.0,0.00018513,2]
[379056799,1755108641047,-285.26501809,0.00018513,2]
[379056800,1755108641056,-76717.82540289,0.00018524,2]
[379056892,1755108643779,-2762.30814339,0.00018524,2]
[379056928,1755108646661,-2363.74996106,0.00018524,2]
[379056947,1755109039159,193.59073541,0.00018222,2]
[379056963,1755109101926,42924.9574573,0.00017373,2]
[379056970,1755109175092,6477.8027304,0.00017436,2]
[379056971,1755109205261,885.90034364,0.00018223,2]
[379056972,1755109223632,278.24989665,0.00018222,2]
[379056974,1755109296319,217.372376,0.00013699,2]
[379056975,1755109398168,775.16280072,0.00018223,2]
[379056976,1755109420919,2275.3203943,0.00017462,2]
[379056979,1755109452714,166.752746,0.00017772,2]
[379056980,1755109453080,323.70640992,0.00017773,2]
[379056998,1755109590943,678.26745063,0.00018223,2]
[379056999,1755109599218,5000.0,0.00018307,2]
[379057002,1755109614837,3550.90469608,0.00018307,2]
[379057022,1755109782070,593.48401931,0.00018223,2]
[379057038,1755109831941,-1200.0,0.0001832,2]
[379057039,1755109831950,-300.0,0.0001832,2]
[379057040,1755109831960,-300.0,0.00018321,2]
[379057041,1755109831972,-300.0,0.00018321,2]
[379057042,1755109831982,-300.0,0.00018321,2]
[379057043,1755109831992,-1200.0,0.00018321,2]
[379057044,1755109832002,-300.0,0.00018321,2]
[379057046,1755109832011,-303.68,0.00018322,2]
[379057048,1755109832021,-500.0,0.00018322,2]
[379057050,1755109832031,-500.0,0.00018322,2]
[379057052,1755109832041,-50000.0,0.00018322,2]
[379057054,1755109832051,-160.0,0.00018323,2]
[379057055,1755109832062,-500.0,0.00018323,2]
[379057056,1755109832071,-500.0,0.00018323,2]
[379057057,1755109832081,-500.0,0.00018323,2]
[379057058,1755109832090,-500.0,0.00018323,2]
[379057059,1755109832099,-500.0,0.00018323,2]
[379057060,1755109832111,-500.0,0.00018323,2]
[379057061,1755109832120,-500.0,0.00018323,2]
[379057062,1755109832129,-500.0,0.00018323,2]
[379057063,1755109832139,-500.0,0.00018323,2]
[379057064,1755109832148,-500.0,0.00018323,2]
[379057065,1755109832157,-500.0,0.00018323,2]
[379057066,1755109832167,-500.0,0.00018323,2]
[379057067,1755109832176,-357.93211964,0.00018323,2]
[379057068,1755109832186,-24923.93958062,0.00018324,2]
[379057069,1755109832205,-405.9271296,0.00018324,2]
[379057153,1755109837912,-604.90997089,0.00018324,2]
[379057154,1755109837925,-5899.95210121,0.00018324,2]
[379057157,1755109837936,-1908.16636108,0.00018324,2]
[379057158,1755109837971,-443.72721329,0.00018324,2]
[379057160,1755109838135,-1057.0,0.00018324,2]
[379057161,1755109838147,-1427.73336685,0.00018324,2]
[379057287,1755109843100,-501.08328675,0.00018324,2]
[379057291,1755109843112,-535.57018971,0.00018324,2]
[379057300,1755109843187,-303.81059378,0.00018324,2]
[379057363,1755109845892,-8003.77410599,0.00018324,2]
[379057674,1755110012077,519.29851687,0.00018273,2]
[379057729,1755110041642,45017.5881082,0.00018224,2]
[379057730,1755110091467,289.05,0.00018154,2]
[379057731,1755110193498,1548.2286031,0.00017653,2]
[379057732,1755110203735,269717.8881271,0.00018224,2]
[379057734,1755110269144,238.679959,0.00013699,2]
[379057735,1755110276384,24900.0,0.00017519,2]
[379057736,1755110400182,10000.0,0.00017503,2]
[379057737,1755110500871,930.52596641,0.00017597,2]
[379057738,1755110503503,3718.38176177,0.00017597,2]
[379057739,1755110519117,419.08613816,0.00017597,2]
[379057740,1755110521652,1676.34455262,0.00017597,2]
[379057741,1755110523833,3771.7752434,0.00017597,2]
[379057742,1755110526044,6698.67283228,0.00017597,2]
[379057745,1755110587501,3153.70788074,0.00018307,2]
[379057746,1755110654332,326.125354,0.00017764,2]
[379057747,1755110654662,196.432009,0.00017774,2]
[379057748,1755110654976,196.432009,0.00017799,2]
[379057750,1755110684888,3576.45389173,0.00018224,2]
[379057752,1755110835497,2000.0,0.0001744,2]
[379057753,1755110835897,1061.031,0.0001744,2]
[379057760,1755110939450,500.0,0.0001752,2]
[379057827,1755111032343,-2154.17175,0.00018313,2]
[379057828,1755111032354,-300.0,0.00018322,2]
[379057829,1755111032364,-1200.0,0.00018322,2]
[379057830,1755111032374,-1000.0,0.00018323,2]
[379057831,1755111032385,-1000.0,0.00018323,2]
[379057832,1755111032394,-1000.0,0.00018323,2]
[379057833,1755111032403,-1000.0,0.00018323,2]
[379057834,1755111032413,-1000.0,0.00018323,2]
[379057835,1755111032423,-240.120184,0.00018323,2]
[379057836,1755111032436,-759.879816,0.00018323,2]
[379057837,1755111032445,-259.87864052,0.00018323,2]
[379058197,1755111038300,-740.12135948,0.00018323,2]
[379058198,1755111038310,-1000.0,0.00018323,2]
[379058199,1755111038319,-1000.0,0.00018323,2]
[379058200,1755111038329,-1000.0,0.00018323,2]
[379058201,1755111038338,-1000.0,0.00018323,2]
[379058202,1755111038347,-431.50975423,0.00018323,2]
[379058203,1755111038356,-50000.0,0.00018323,2]
[379058204,1755111038365,-2154.17174996,0.00018341,2]
[379058205,1755111038374,-2154.17174996,0.00018369,2]
[379058206,1755111038384,-2154.17174996,0.00018396,2]
[379058207,1755111038393,-1200.0,0.00018397,2]
[379058208,1755111038403,-300.0,0.00018397,2]
[379058209,1755111038412,-301.117,0.00018399,2]
[379058210,1755111038421,-213.29,0.00018404,3]
[379058211,1755111038431,-188.25,0.00018404,3]
[379058213,1755111038440,-564.78,0.00018404,3]
[379058214,1755111038449,-500.0,0.00018409,2]
[379058215,1755111038459,-349.4863167,0.00018409,2]
[379058216,1755111038469,-500.0,0.00018409,2]
[379058217,1755111038479,-161.45513633,0.00018409,2]
[379058218,1755111038487,-500.0,0.00018409,2]
[379058219,1755111038497,-500.0,0.00018409,2]
[379058220,1755111038507,-500.0,0.00018409,2]
[379058221,1755111038516,-500.0,0.00018409,2]
[379058222,1755111038525,-500.0,0.00018409,2]
[379058223,1755111038534,-500.0,0.00018409,2]
[379058224,1755111038543,-500.0,0.00018409,2]
[379058225,1755111038552,-500.0,0.00018409,2]
[379058226,1755111038562,-500.0,0.00018409,2]
[379058227,1755111038571,-500.0,0.00018409,2]
[379058228,1755111038580,-500.0,0.00018409,2]
[379058229,1755111038589,-500.0,0.00018409,2]
[379058230,1755111038599,-188.16354887,0.00018409,2]
[379058231,1755111038608,-500.0,0.00018409,2]
[379058232,1755111038617,-500.0,0.00018409,2]
[379058233,1755111038626,-500.0,0.00018409,2]
[379058234,1755111038637,-500.0,0.00018409,2]
[379058235,1755111038646,-500.0,0.00018409,2]
[379058236,1755111038656,-500.0,0.00018409,2]
[379058237,1755111038666,-500.0,0.00018409,2]
[379058238,1755111038675,-500.0,0.00018409,2]
[379058239,1755111038686,-500.0,0.00018409,2]
[379058240,1755111038695,-500.0,0.00018409,2]
[379058241,1755111038705,-500.0,0.00018409,2]
[379058242,1755111038715,-500.0,0.00018409,2]
[379058243,1755111038726,-500.0,0.00018409,2]
[379058244,1755111038740,-207.51702019,0.00018409,2]
[379058245,1755111038752,-500.0,0.00018409,2]
[379058246,1755111038761,-556.13369084,0.00018409,2]
[379058247,1755111038771,-500.0,0.00018409,2]
[379058249,1755111038781,-500.0,0.00018409,2]
[379058250,1755111038790,-500.0,0.00018409,2]
[379058252,1755111038799,-500.0,0.00018409,2]
[379058253,1755111038809,-500.0,0.00018409,2]
[379058254,1755111038823,-500.0,0.00018409,2]
[379058255,1755111038832,-500.0,0.00018409,2]
[379058256,1755111038841,-500.0,0.00018409,2]
[379058257,1755111038850,-500.0,0.00018409,2]
[379058258,1755111038859,-500.0,0.00018409,2]
[379058259,1755111038869,-480.55724768,0.00018409,2]
[379058260,1755111038879,-500.0,0.00018409,2]
[379058261,1755111038888,-633.32346997,0.00018409,2]
[379058262,1755111038897,-500.0,0.00018409,2]
[379058263,1755111038907,-500.0,0.00018409,2]
[379058265,1755111038916,-500.0,0.00018409,2]
[379058266,1755111038925,-500.0,0.00018409,2]
[379058268,1755111038934,-500.0,0.00018409,2]
[379058271,1755111038943,-500.0,0.00018409,2]
[379058272,1755111038953,-500.0,0.00018409,2]
[379058274,1755111038962,-500.0,0.00018409,2]
[379058275,1755111038971,-500.0,0.00018409,2]
[379058276,1755111038980,-500.0,0.00018409,2]
[379058277,1755111038989,-500.0,0.00018409,2]
[379058278,1755111038999,-500.0,0.00018409,2]
[379058279,1755111039009,-500.0,0.00018409,2]
[379058280,1755111039019,-500.0,0.00018409,2]
[379058281,1755111039028,-500.0,0.00018409,2]
[379058283,1755111039037,-500.0,0.00018409,2]
[379058284,1755111039047,-500.0,0.00018409,2]
[379058286,1755111039056,-500.0,0.00018409,2]
[379058287,1755111039066,-500.0,0.00018409,2]
[379058289,1755111039075,-500.0,0.00018409,2]
[379058290,1755111039084,-500.0,0.00018409,2]
[379058291,1755111039094,-500.0,0.00018409,2]
[379058293,1755111039104,-500.0,0.00018409,2]
[379058294,1755111039114,-500.0,0.00018409,2]
[379058296,1755111039123,-500.0,0.00018409,2]
[379058298,1755111039134,-500.0,0.00018409,2]
[379058299,1755111039143,-500.0,0.00018409,2]
[379058300,1755111039153,-500.0,0.00018409,2]
[379058301,1755111039163,-500.0,0.00018409,2]
[379058302,1755111039172,-500.0,0.00018409,2]
[379058304,1755111039181,-500.0,0.00018409,2]
[379058306,1755111039190,-500.0,0.00018409,2]
[379058307,1755111039200,-500.0,0.00018409,2]
[379058316,1755111039359,-500.0,0.00018409,2]
[379058317,1755111039371,-500.0,0.00018409,2]
[379058319,1755111039381,-500.0,0.00018409,2]
[379058320,1755111039390,-500.0,0.00018409,2]
[379058322,1755111039400,-500.0,0.00018409,2]
[379058323,1755111039410,-500.0,0.00018409,2]
[379058324,1755111039421,-500.0,0.00018409,2]
[379058326,1755111039431,-500.0,0.00018409,2]
[379058327,1755111039440,-500.0,0.00018409,2]
[379058329,1755111039449,-500.0,0.00018409,2]
[379058331,1755111039459,-500.0,0.00018409,2]
[379058332,1755111039468,-500.0,0.00018409,2]
[379058334,1755111039477,-500.0,0.00018409,2]
[379058335,1755111039486,-500.0,0.00018409,2]
[379058336,1755111039495,-500.0,0.00018409,2]
[379058338,1755111039505,-285.87816901,0.00018409,2]
[379058340,1755111039514,-500.0,0.00018409,2]
[379058341,1755111039523,-500.0,0.00018409,2]
[379058343,1755111039532,-500.0,0.00018409,2]
[379058345,1755111039541,-500.0,0.00018409,2]
[379058346,1755111039550,-500.0,0.00018409,2]
[379058349,1755111039559,-500.0,0.00018409,2]
[379058351,1755111039568,-500.0,0.00018409,2]
[379058354,1755111039577,-500.0,0.00018409,2]
[379058357,1755111039588,-500.0,0.00018409,2]
[379058359,1755111039597,-500.0,0.00018409,2]
[379058360,1755111039605,-500.0,0.00018409,2]
[379058361,1755111039615,-500.0,0.00018409,2]
[379058362,1755111039623,-500.0,0.00018409,2]
[379058363,1755111039633,-500.0,0.00018409,2]
[379058364,1755111039642,-500.0,0.00018409,2]
[379058365,1755111039651,-500.0,0.00018409,2]
[379058366,1755111039660,-500.0,0.00018409,2]
[379058367,1755111039669,-500.0,0.00018409,2]
[379058368,1755111039679,-500.0,0.00018409,2]
[379058369,1755111039688,-500.0,0.00018409,2]
[379058370,1755111039697,-500.0,0.00018412,2]
[379058371,1755111039706,-151.0,0.00018412,2]
[379058372,1755111039716,-151.0,0.00018412,2]
[379058373,1755111039725,-151.0,0.00018412,2]
[379058374,1755111039735,-151.0,0.00018412,2]
[379058375,1755111039746,-151.0,0.00018412,2]
[379058376,1755111039756,-151.0,0.00018412,2]
[379058377,1755111039766,-500.0,0.00018412,2]
[379058378,1755111039775,-151.0,0.00018412,2]
[379058379,1755111039785,-500.0,0.00018413,2]
[379058380,1755111039795,-297.10089963,0.00018413,2]
[379058381,1755111039809,-500.0,0.00018413,2]
[379058382,1755111039822,-500.0,0.00018413,2]
[379058383,1755111039833,-500.0,0.00018413,2]
[379058384,1755111039842,-500.0,0.00018413,2]
[379058385,1755111039852,-500.0,0.00018413,2]
[379058386,1755111039862,-500.0,0.00018413,2]
[379058387,1755111039871,-500.0,0.00018413,2]
[379058388,1755111039882,-500.0,0.00018413,2]
[379058389,1755111039891,-500.0,0.00018413,2]
[379058390,1755111039901,-500.0,0.00018413,2]
[379058391,1755111039910,-500.0,0.00018413,2]
[379058392,1755111039919,-500.0,0.00018413,2]
[379058393,1755111039929,-200.55248374,0.00018413,2]
[379058394,1755111039938,-500.0,0.00018413,2]
[379058395,1755111039947,-500.0,0.00018413,2]
[379058396,1755111039957,-500.0,0.00018413,2]
[379058397,1755111039967,-500.0,0.00018413,2]
[379058398,1755111039976,-500.0,0.00018413,2]
[379058399,1755111039985,-500.0,0.00018413,2]
[379058401,1755111039995,-500.0,0.00018413,2]
[379058403,1755111040006,-500.0,0.00018413,2]
[379058405,1755111040015,-500.0,0.00018413,2]
[379058407,1755111040025,-500.0,0.00018413,2]
[379058408,1755111040034,-500.0,0.00018413,2]
[379058410,1755111040043,-500.0,0.00018413,2]
[379058411,1755111040053,-500.0,0.00018413,2]
[379058412,1755111040062,-500.0,0.00018413,2]
[379058413,1755111040072,-593.35605787,0.00018413,2]
[379058414,1755111040081,-500.0,0.00018413,2]
[379058415,1755111040094,-250.0,0.00018413,2]
[379058416,1755111040104,-151.0,0.00018413,2]
[379058417,1755111040113,-151.0,0.00018413,2]
[379058418,1755111040122,-151.0,0.00018413,2]
[379058419,1755111040132,-3469.91613631,0.00018414,2]
[379058420,1755111040141,-370000.0,0.00018414,2]
[379058421,1755111040151,-151.0,0.00018414,2]
[379058422,1755111040161,-151.0,0.00018414,2]
[379058423,1755111040170,-151.0,0.00018414,2]
[379058424,1755111040180,-4197.95163048,0.00018424,2]
[379058425,1755111040189,-2154.17174996,0.00018424,2]
[379058426,1755111040199,-151.0,0.0001844,2]
[379058427,1755111040208,-151.0,0.0001844,2]
[379058428,1755111040218,-250.0,0.0001844,2]
[379058429,1755111040227,-151.0,0.0001844,2]
[379058430,1755111040237,-151.0,0.0001844,2]
[379058431,1755111040246,-300.0,0.0001844,2]
[379058432,1755111040255,-151.0,0.0001844,2]
[379058433,1755111040267,-151.0,0.0001844,2]
[379058434,1755111040276,-300.0,0.0001844,2]
[379058435,1755111040286,-151.0,0.0001844,2]
[379058437,1755111040295,-151.0,0.0001844,2]
[379058439,1755111040304,-300.0,0.0001844,2]
[379058440,1755111040313,-151.0,0.0001844,2]
[379058442,1755111040323,-151.0,0.0001844,2]
[379058444,1755111040333,-151.0,0.0001844,2]
[379058446,1755111040343,-500.0,0.0001844,2]
[379058447,1755111040352,-2183.31810187,0.0001844,2]
[379058449,1755111040362,-500.0,0.0001844,2]
[379058450,1755111040371,-17842.522448,0.0001844,2]
[379058452,1755111040381,-500.0,0.0001844,2]
[379058454,1755111040391,-151.0,0.0001844,2]
[379058455,1755111040400,-151.0,0.0001844,2]
[379058457,1755111040409,-500.0,0.0001844,2]
[379058459,1755111040419,-230.72414637,0.0001844,2]
[379058460,1755111040428,-500.0,0.0001844,2]
[379058462,1755111040437,-500.0,0.0001844,2]
[379058464,1755111040447,-151.0,0.0001844,2]
[379058465,1755111040457,-500.0,0.0001844,2]
[379058467,1755111040466,-151.0,0.0001844,2]
[379058469,1755111040475,-500.0,0.0001844,2]
[379058471,1755111040484,-151.0,0.0001844,2]
[379058472,1755111040494,-500.0,0.0001844,2]
[379058474,1755111040504,-151.0,0.0001844,2]
[379058476,1755111040513,-573.20265608,0.0001844,2]
[379058477,1755111040523,-151.0,0.0001844,2]
[379058479,1755111040532,-151.0,0.0001844,2]
[379058481,1755111040541,-151.0,0.0001844,2]
[379058483,1755111040551,-151.0,0.0001844,2]
[379058484,1755111040560,-151.0,0.0001844,2]
[379058486,1755111040569,-151.0,0.0001844,2]
[379058488,1755111040579,-151.0,0.0001844,2]
[379058489,1755111040587,-151.0,0.0001844,2]
[379058491,1755111040597,-151.0,0.0001844,2]
[379058493,1755111040606,-151.0,0.0001844,2]
[379058494,1755111040615,-151.0,0.0001844,2]
[379058496,1755111040625,-151.0,0.0001844,2]
[379058498,1755111040635,-151.0,0.0001844,2]
[379058500,1755111040644,-341.0,0.00018465,2]
[379058501,1755111040654,-500.0,0.00018473,2]
[379058503,1755111040663,-500.0,0.00018473,2]
[379058505,1755111040672,-500.0,0.00018473,2]
[379058507,1755111040681,-500.0,0.00018473,2]
[379058508,1755111040690,-500.41157304,0.00018473,2]
[379058510,1755111040700,-500.0,0.00018473,2]
[379058512,1755111040709,-500.0,0.00018473,2]
[379058513,1755111040718,-500.0,0.00018473,2]
[379058515,1755111040728,-500.0,0.00018473,2]
[379058516,1755111040740,-500.0,0.00018473,2]
[379058517,1755111040749,-332.03455376,0.00018473,2]
[379058519,1755111040759,-500.0,0.00018473,2]
[379058521,1755111040768,-500.0,0.00018473,2]
[379058522,1755111040777,-440.2549464,0.00018473,2]
[379058524,1755111040787,-500.0,0.00018473,2]
[379058526,1755111040796,-500.0,0.00018473,2]
[379058527,1755111040806,-500.0,0.00018473,2]
[379058529,1755111040818,-500.0,0.00018473,2]
[379058531,1755111040827,-547.76989051,0.00018473,2]
[379058532,1755111040836,-500.0,0.00018473,2]
[379058534,1755111040846,-500.0,0.00018473,2]
[379058536,1755111040855,-2264.10087164,0.00018495,2]
[379058538,1755111040865,-151.0,0.000185,2]
[379058539,1755111040874,-151.0,0.000185,2]
[379058541,1755111040883,-151.0,0.000185,2]
[379058543,1755111040893,-151.0,0.000185,2]
[379058544,1755111040902,-151.0,0.000185,2]
[379058546,1755111040912,-151.0,0.000185,2]
[379058548,1755111040921,-151.0,0.000185,2]
[379058549,1755111040931,-151.0,0.00018513,2]
[379058551,1755111040940,-151.0,0.00018513,2]
[379058552,1755111040949,-167.84470587,0.00018518,2]
[379058554,1755111040959,-151.0,0.00018518,2]
[379058556,1755111040968,-151.0,0.00018518,2]
[379058557,1755111040977,-151.0,0.00018518,2]
[379058559,1755111040987,-151.0,0.00018518,2]
[379058561,1755111040997,-151.0,0.00018518,2]
[379058562,1755111041006,-151.0,0.00018518,2]
[379058563,1755111041016,-500.0,0.00018518,2]
[379058564,1755111041026,-152.03862174,0.00018518,2]
[379058565,1755111041035,-500.0,0.00018518,2]
[379058566,1755111041045,-151.0,0.00018518,2]
[379058567,1755111041054,-151.0,0.00018518,2]
[379058568,1755111041064,-151.0,0.00018518,2]
[379058569,1755111041073,-228.69673315,0.00018518,2]
[379058570,1755111041083,-151.0,0.00018518,2]
[379058571,1755111041093,-151.0,0.00018518,2]
[379058572,1755111041102,-151.0,0.00018518,2]
[379058573,1755111041112,-269.4039774,0.00018518,2]
[379058574,1755111041121,-151.0,0.0001852,2]
[379058575,1755111041132,-151.0,0.0001852,2]
[379058576,1755111041141,-151.0,0.0001852,2]
[379058577,1755111041151,-151.0,0.0001852,2]
[379058578,1755111041160,-1808.95,0.0001852,2]
[379058579,1755111041170,-1808.95,0.0001852,2]
[379058580,1755111041191,-1808.95,0.0001852,2]
[379058581,1755111041200,-1808.95,0.0001852,2]
[379058582,1755111041210,-1808.95,0.0001852,2]
[379058583,1755111041220,-1808.95,0.0001852,2]
[379058584,1755111041230,-1808.95,0.0001852,2]
[379058585,1755111041240,-1808.95,0.0001852,2]
[379058586,1755111041249,-1808.95,0.0001852,2]
[379058587,1755111041259,-1808.95,0.0001852,2]
[379058588,1755111041268,-1808.95,0.0001852,2]
[379058589,1755111041278,-1808.95,0.0001852,2]
[379058590,1755111041288,-1808.95,0.0001852,2]
[379058591,1755111041298,-1808.95,0.0001852,2]
[379058592,1755111041307,-1808.95,0.0001852,2]
[379058593,1755111041317,-1808.95,0.0001852,2]
[379058594,1755111041326,-1808.95,0.0001852,2]
[379058595,1755111041336,-1808.95,0.0001852,2]
[379058596,1755111041345,-1808.95,0.0001852,2]
[379058597,1755111041355,-1808.95,0.0001852,2]
[379058598,1755111041364,-1808.95,0.0001852,2]
[379058599,1755111041374,-1808.95,0.0001852,2]
[379058600,1755111041383,-1808.95,0.0001852,2]
[379058601,1755111041393,-1809.10626907,0.0001852,2]
[379058602,1755111041402,-161.36298793,0.00018523,2]
[379058603,1755111041412,-299.01473573,0.00018523,2]
[379058604,1755111041421,-6501145.79248536,0.00018524,2]